Workbook

Sheet Sheet1
A1: 附件
C2: 存量住宅用地信息表
B3: 表1. 市（县）存量住宅用地项目清单
G4: 单位：公顷
A5: 序号 | B5: 项目名称 | C5: 位置 | D5: 住宅类型 | E5: 土地面积 | F5: 建设状态 | G5: 未销售房屋的土地面积
A6: 1 | B6: 西咸空港绿地新城四期 | C6: 空港新城慈恩大街以南、崇礼路以东、天翼大道以西 | D6: 普通商品房 | E6: 5.91 | F6: 已动工未竣工 | G6: 0.34
A7: 2 | B7: 西咸空港绿地新城五期 | C7: 空港新城慈恩大街以北、天翼大道以西、崇礼路以东、奉化街以南 | D7: 普通商品房 | E7: 6.32 | F7: 已动工未竣工 | G7: 0.76
A8: 3 | B8: 西咸空港绿地新城六期 | C8: 空港新城慈恩大街以北、崇文路以东、崇礼路以西、奉化街以南 | D8: 普通商品房 | E8: 5.82 | F8: 已动工未竣工 | G8: 0.71
A9: 4 | B9: 西安国际美术城项目一期 | C9: 崇文路（原新城九路）以东、崇礼路（原新城十路）以西、兴教大街（原新城南大道）以北。 | D9: 普通商品房 | E9: 4.50 | F9: 已动工未竣工 | G9: 3.05
A10: 5 | B10: 空港福星美术城K4项目 | C10: 空港新城崇文路以东、草堂大街以南、崇礼路以西、净业大街以北 | D10: 普通商品房 | E10: 4.00 | F10: 已动工未竣工 | G10: 2.36
A11: 6 | B11: 空港福星美术城k5项目 | C11: 空港新城崇文路以东、净业大街以南、崇礼路以西 | D11: 普通商品房 | E11: 4.46 | F11: 已动工未竣工 | G11: 1.18
A12: 7 | B12: 东航空港总部保障基地项目（住宅东） | C12: 空港新城广仁大街以南、立政路以西、立义路以东、奉化街以北 | D12: 普通商品房 | E12: 9.47 | F12: 已动工未竣工 | G12: 9.47
A13: 8 | B13: 星皓·锦樾项目 | C13: 空港新城崇义路以东、慈恩大街以南、立政路以西、草堂大街以北 | D13: 普通商品房 | E13: 4.69 | F13: 已动工未竣工 | G13: 1.28
A14: 9 | B14: 星皓锦樾三期项目 | C14: 空港新城崇义路以东、慈恩大街以南、立政路以西、草堂大街以北 | D14: 普通商品房 | E14: 4.57 | F14: 未动工
A15: 10 | B15: 西咸空港绿地新城1.1期 | C15: 空港新城净业大街以南、永和路以西、永松路以东、兴教大街以北 | D15: 普通商品房 | E15: 8.01 | F15: 已竣工 | G15: 0
A16: 11 | B16: 西咸空港绿地新城2.2期 | C16: 空港新城净业大街以南、永和路以西、永松路以东、兴教大街以北 | D16: 普通商品房 | E16: 6.90 | F16: 已动工未竣工 | G16: 1.63
A17: 12 | B17: 西咸空港绿地新城三期项目 | C17: 空港新城净业大街以南、永和路以西、永松路以东、兴教大街以北 | D17: 普通商品房 | E17: 3.96 | F17: 已动工未竣工 | G17: 1.38
A18: 13 | B18: 金地格林云上 | C18: 空港新城净业大街以南，立政路以西 | D18: 普通商品房 | E18: 6.72 | F18: 已动工未竣工 | G18: 0
A19: 14 | B19: 中梁国宾府 | C19: 空港新城净业大街以南、章义路以西、顺义路以东、兴教大街以北 | D19: 普通商品房 | E19: 3.94 | F19: 已动工未竣工 | G19: 0.60
A20: 15 | B20: 西安空港苏宁云著 | C20: 空港新城明义路以东、净业大街以南、崇义路以西、兴教大街以北 | D20: 普通商品房 | E20: 14.21 | F20: 已动工未竣工 | G20: 14.21
A21: 16 | B21: 悦达玖玺台小区 | C21: 西咸新区空港新城底张片区章义路以东、净业大街以南、明义路以西、兴教大街以北 | D21: 普通商品房 | E21: 6.60 | F21: 未动工
A22: 17 | B22: 龙湖天璞街区 | C22: 西咸新区空港新城底张片区草堂大街以北、崇仁路以东、慈恩大街以南、崇文路以西 | D22: 普通商品房 | E22: 5.15 | F22: 未动工
A23: 18 | B23: 星皓.和悦一期 | C23: 底张大街以南、崇文路以东、崇礼路以西、兴安街以北 | D23: 共有产权房 | E23: 5.62 | F23: 未动工
A24: 19 | B24: 绿城桂语云镜 | C24: 草堂大街以北、崇礼路以西、慈恩大街以南、崇文路以东 | D24: 普通商品房 | E24: 5.29 | F24: 未动工
A25: 20 | B25: 幸福二小北侧住宅 | C25: 空港新城底张片区崇礼路以西、广仁大街以南、崇文路以东 | D25: 普通商品房 | E25: 4.12 | F25: 未动工
A26: 21 | B26: 晋公庙学校新址北侧住宅 | C26: 空港新城底张片区崇礼路以东、天翼大道以西、净业大街以北 | D26: 普通商品房 | E26: 4.89 | F26: 未动工
A27: 22 | B27: 陕三建集团总部 | C27: 空港新城底张片区兴教大街以北、崇仁路以西、立政路以东 | D27: 普通商品房 | E27: 4.89 | F27: 未动工
A28: 23 | B28: 兰樾坊 | C28: 红光大道以北、科源东路以西 | D28: 普通商品房 | E28: 8.761 | F28: 已动工未竣工 | G28: 2.216
A29: 24 | B29: 陕西明茂投资有限公司 | C29: 武警路以西 | D29: 普通商品房 | E29: 0.517 | F29: 已动工未竣工 | G29: 0
A30: 25 | B30: 西安市沣东新城恒业置地有限公司 | C30: 昆明十六路以南、镐京新城园区路以东 | D30: 普通商品房 | E30: 5.751 | F30: 已动工未竣工 | G30: 0
A31: 26 | B31: 西安市沣东新城兴业置业有限公司 | C31: 昆明十三路以北、镐京新城园区路以西 | D31: 普通商品房 | E31: 6.357 | F31: 未动工
A32: 27 | B32: 西安市沣东新城兴业置业有限公司 | C32: 昆明十三路以北、沣东十路以西 | D32: 普通商品房 | E32: 5.836 | F32: 未动工
A33: 28 | B33: 湖光山色三期 | C33: 昆明十四路以北、镐京园区路以西 | D33: 普通商品房 | E33: 4.353 | F33: 已动工未竣工 | G33: 3.744
A34: 29 | B34: 西安市沣东新城沣景置业有限公司 | C34: 昆明三路以南、沣泾大道以西 | D34: 普通商品房 | E34: 9.718 | F34: 未动工
A35: 30 | B35: 沣水云间 | C35: 昆明四路以北、沣泾大道以西 | D35: 普通商品房 | E35: 9.297 | F35: 已动工未竣工 | G35: 0
A36: 31 | B36: 湖光山色东秀 | C36: 昆明十六路以南、沣东八路以西 | D36: 普通商品房 | E36: 6.075 | F36: 已动工未竣工 | G36: 1.493
A37: 32 | B37: 西安沣东新城沣谷发展有限公司 | C37: 昆明十四路以北、沣东十路以西 | D37: 普通商品房 | E37: 5.382 | F37: 已动工未竣工 | G37: 0
A38: 33 | B38: 碧桂园国湖 | C38: 镐京大道以北、沣东八路以西 | D38: 普通商品房 | E38: 11.840 | F38: 已动工未竣工 | G38: 5.145
A39: 34 | B39: 西安华英房地产开发有限公司 | C39: 太平路以西、沣东大道以北 | D39: 普通商品房 | E39: 4.389 | F39: 已动工未竣工 | G39: 0
A40: 35 | B40: 沣东智谷一期 | C40: 征和四路以北、太宁路以西 | D40: 普通商品房 | E40: 6.386 | F40: 已动工未竣工 | G40: 4.624
A41: 36 | B41: 和光尘樾 | C41: 太安路以东、征和四路以南 | D41: 普通商品房 | E41: 10.042 | F41: 已动工未竣工 | G41: 6.280
A42: 37 | B42: 湖滨府A区 | C42: 镐京大道以北、沣东三路以西 | D42: 普通商品房 | E42: 14.822 | F42: 已动工未竣工 | G42: 4.021
A43: 38 | B43: 湖滨府B区 | C43: 丰镐大道以西、昆明四路以南 | D43: 普通商品房 | E43: 12.089 | F43: 已动工未竣工 | G43: 1.447
A44: 39 | B44: 西安沣东华侨城发展有限公司 | C44: 昆明八路以北、沣河东路以东 | D44: 普通商品房 | E44: 12.314 | F44: 已动工未竣工 | G44: 12.314
A45: 40 | B45: 西安沣东实业发展有限公司 | C45: 沣河东路以东、昆明三路以南 | D45: 普通商品房 | E45: 3.651 | F45: 已动工未竣工 | G45: 3.32
A46: 41 | B46: 万科企业股份有限公司 | C46: 太安路以东、征和七路以北 | D46: 普通商品房 | E46: 6.443 | F46: 已动工未竣工 | G46: 6.443
A47: 42 | B47: 西安智晟达置业有限公司 | C47: 征和八路以南、太安路以西 | D47: 普通商品房 | E47: 3.912 | F47: 已动工未竣工 | G47: 1.174
A48: 43 | B48: 西安沣东地产有限公司 | C48: 征和六路以北，太安路以东 | D48: 普通商品房 | E48: 6.551 | F48: 未动工
A49: 44 | B49: 太伟城市综合体 | C49: 南临河堤路绿化景观带、北临兰池大道。 | D49: 普通商品房 | E49: 26.6897 | F49: 已动工未竣工 | G49: 20.5782
A50: 45 | B50: 佳莲城市综合体 | C50: 北临咸铜铁路、东临秦宫三路、南临兰池大道、西临秦宫二路。 | D50: 普通商品房 | E50: 24.7922 | F50: 已动工未竣工 | G50: 19.1564
A51: 46 | B51: 星河湾城市综合体 | C51: 秦苑一路以东，星河西路以西，兰池大道以北，咸铜铁路以南 | D51: 普通商品房 | E51: 48.1453 | F51: 已动工未竣工 | G51: 29.1400
A52: 47 | B52: 中科城市综合体 | C52: 长兴村以东，秦苑一路以西，兰池大道以北，咸铜铁路以南 | D52: 普通商品房 | E52: 20.3288 | F52: 已动工未竣工 | G52: 6.9427
A53: 48 | B53: 春城十八里 | C53: 窑店镇长兴村以东，咸阳太伟置业有限责任公司QH—2011—001地块以西，QH—2012—020地块以北，兰池大道以南 | D53: 普通商品房 | E53: 10.0800 | F53: 已动工未竣工 | G53: 6.1901
A54: 49 | B54: 西港兰池郡 | C54: 西毛村以南，秦苑二路以东，咸红路以北区域 | D54: 普通商品房 | E54: 17.4932 | F54: 已动工未竣工 | G54: 15.2475
A55: 50 | B55: 万通立体城 | C55: 汉关二路以南，兰池二路以北，秦苑三路以东 | D55: 普通商品房 | E55: 15.8032 | F55: 已动工未竣工 | G55: 6.1850
A56: 51 | B56: 中天诚品 | C56: 规划路以东，咸铜铁路以南，秦汉大道以西。 | D56: 普通商品房 | E56: 11.3956 | F56: 已动工未竣工 | G56: 5.1469
A57: 52 | B57: 陕煤建秦欣小区 | C57: 咸铜铁路以南、规划路以西、秦苑四路以东 | D57: 普通商品房 | E57: 4.1750 | F57: 已动工未竣工 | G57: 4.1750
A58: 53 | B58: 秦汉佳苑 | C58: 兰池二路以北、邓家村以南、秦宫一路以东、秦宫二路以西区域 | D58: 普通商品房 | E58: 10.0898 | F58: 已动工未竣工 | G58: 8.0751
A59: 54 | B59: 冯武臣 | C59: 尚忠路以东、QH-2014-017-2号宗地以西、文兴路以南、文清路以北 | D59: 普通商品房 | E59: 3.3330 | F59: 未动工
A60: 55 | B60: 万通（万科） | C60: 规划三路以东、秦央四路以西、兰池二路以北 | D60: 普通商品房 | E60: 3.2072 | F60: 已动工未竣工 | G60: 0.3650
A61: 56 | B61: 恒大文旅城 | C61: 汉风五路以东、规划路以西 | D61: 普通商品房 | E61: 95.4645 | F61: 已动工未竣工 | G61: 7.8635
A62: 57 | B62: 颐养城 | C62: 秦宫四路以东、秦宫五路以西、兰池大道以北、兰启路以南 | D62: 普通商品房 | E62: 21.4023 | F62: 已动工未竣工 | G62: 16.4916
A63: 58 | B63: 绿地格林公馆 | C63: 汉书一路以东、汉高大道以西、韩信路以南、李广街以北 | D63: 普通商品房 | E63: 11.2396 | F63: 已动工未竣工 | G63: 0
A64: 59 | B64: 秦鹰居 | C64: 秦宫五路以东、秦宫六路以西、兰池二路以北、兰明路以南 | D64: 普通商品房 | E64: 4.3484 | F64: 未动工
A65: 60 | B65: 中铁二十局 | C65: 兰启路以南、兰池二路以北、秦宫三路以东、秦宫四路以西 | D65: 普通商品房 | E65: 9.7278 | F65: 未动工
A66: 61 | B66: 龙力置业 | C66: 兰池大道以北、咸铜铁路以南、五陵大道以东、制陶遗址作坊以西 | D66: 普通商品房 | E66: 3.4280 | F66: 未动工
A67: 62 | B67: 原绿城（中梁） | C67: 李广街以南、萧何路以北、汉书一路以东、汉高大道以西 | D67: 普通商品房 | E67: 10.2330 | F67: 已动工未竣工 | G67: 1.2100
A68: 63 | B68: 秦汉幼儿园及配套 | C68: 秦泉路以东、秦宫二路以西、兰池二路以北 | D68: 普通商品房 | E68: 7.3371 | F68: 未动工
A69: 64 | B69: 万科共筑（金域缇香） | C69: 兰池四路以北、张裕路以东、酒庄路以西、景致一路以南 | D69: 普通商品房 | E69: 7.4530 | F69: 已动工未竣工 | G69: 0
A70: 65 | B70: 际华（中天峯悦） | C70: 兰池四路以北、张裕路以东、酒庄路以西、景致一路以南 | D70: 普通商品房 | E70: 8.7573 | F70: 已动工未竣工 | G70: 5.98
A71: 66 | B71: 沃德小镇(保利) | C71: 秦汉新城兰池二路以南、兰尚路以北、正阳六路以东 | D71: 普通商品房 | E71: 5.6060 | F71: 已动工未竣工 | G71: 2.10
A72: 67 | B72: 高瓴置业 | C72: 秦汉新城泾渭大道以东、卫青东街以南、汉韵一路以西、张良路以北 | D72: 普通商品房 | E72: 7.2617 | F72: 已动工未竣工 | G72: 7.2617
A73: 68 | B73: 金科世界城 | C73: 同德路以东、西宝高速南辅道以南 | D73: 普通商品房 | E73: 4.3730 | F73: 已竣工 | G73: 0
A74: 69 | B74: 金科世界城 | C74: 同德路以东、FX-2014-15地块以西 | D74: 普通商品房 | E74: 3.3321 | F74: 已竣工 | G74: 0
A75: 70 | B75: 金科世界城 | C75: 同德路东、永平路以北 | D75: 普通商品房 | E75: 0.4016 | F75: 已竣工 | G75: 0
A76: 71 | B76: 金科世界城 | C76: 永平路以北、FX-2014-13地块以东 | D76: 普通商品房 | E76: 6.2637 | F76: 已竣工 | G76: 0
A77: 72 | B77: 金科世界城 | C77: 永平路以北、同文路以西 | D77: 普通商品房 | E77: 6.0618 | F77: 已竣工 | G77: 0
A78: 73 | B78: 同德晨曦园 | C78: 统一路南、同德佳苑公租房以北 | D78: 普通商品房 | E78: 6.6565 | F78: 已竣工 | G78: 0
A79: 74 | B79: 沣西逸园 | C79: 沣渭大道以东，公园大道以北 | D79: 普通商品房 | E79: 6.6089 | F79: 已动工未竣工 | G79: 2.3961
A80: 75 | B80: 理想欣港湾 | C80: 横十一路以南，兴信路以西，天元路以北，纵十路以东 | D80: 普通商品房 | E80: 4.1056 | F80: 已动工未竣工 | G80: 0.4665
A81: 76 | B81: 理想欣港湾二期 | C81: 横十一路以南，兴信路以西，天元路以北，纵十路以东 | D81: 普通商品房 | E81: 0.2725 | F81: 已动工未竣工 | G81: 0.2725
A82: 77 | B82: 枫溪美郡 | C82: 沣西新城康定路以北、兴咸路以西 | D82: 普通商品房 | E82: 5.2072 | F82: 已动工未竣工 | G82: 3
A83: 78 | B83: 市政佳苑 | C83: 西宝高速南辅道以南、同文路以东 | D83: 普通商品房 | E83: 0.8624 | F83: 已动工未竣工 | G83: 0.8624
A84: 79 | B84: 隆桥瑞苑 | C84: 白马河路以西，沣景路以北 | D84: 普通商品房 | E84: 3.3563 | F84: 已竣工 | G84: 0.4862
A85: 80 | B85: 吾悦广场 | C85: 永沣路以南，同心路以东，白马河路以西，统一路以北 | D85: 普通商品房 | E85: 4.0226 | F85: 已竣工 | G85: 0
A86: 81 | B86: 西派时代 | C86: 白马河以东，同仁北路以西，郭村路以南，永平路以北 | D86: 普通商品房 | E86: 6.2593 | F86: 已动工未竣工 | G86: 0.0986
A87: 82 | B87: 紫薇樾湾府 | C87: 开元路东北侧，咸户路以西，创业路以南 | D87: 普通商品房 | E87: 3.9704 | F87: 已动工未竣工 | G87: 3.9704
A88: 83 | B88: 沣西逸园 | C88: 沣渭大道以东，天雄西路以北 | D88: 普通商品房 | E88: 0.2856 | F88: 已动工未竣工 | G88: 0.28562
A89: 84 | B89: 紫薇铂樾府 | C89: 同仁北路以西，郭村路以北，高速南辅道以南 | D89: 普通商品房 | E89: 3.0652 | F89: 已动工未竣工 | G89: 0
A90: 85 | B90: 西派时代 | C90: 白马河以东，同仁北路以西，郭村路以南，永平路以北 | D90: 普通商品房 | E90: 6.2593 | F90: 已动工未竣工 | G90: 1.6164
A91: 86 | B91: 万科云镜 | C91: 韩非路以东，永平路以南，统一以北，沣柳路以西 | D91: 普通商品房 | E91: 3.2356 | F91: 已动工未竣工 | G91: 0.4152
A92: 87 | B92: 紫薇毓秀府 | C92: 统一路以南，兴咸路以西，康定路以北，沣渭大道以东 | D92: 普通商品房 | E92: 2.3229 | F92: 已动工未竣工 | G92: 2.3229
A93: 88 | B93: 万科云镜 | C93: 韩非路以东，永平路以南，统一以北，沣柳路以西 | D93: 普通商品房 | E93: 3.2356 | F93: 已竣工 | G93: 0
A94: 89 | B94: 万科大都会 | C94: 永平路以南，永泰路以北，同仁路以西 | D94: 普通商品房 | E94: 6.0130 | F94: 已竣工 | G94: 0
A95: 90 | B95: 万科大都会 | C95: 永泰路以南，统一路以北，同仁路以西 | D95: 普通商品房 | E95: 4.8285 | F95: 已竣工 | G95: 0
A96: 91 | B96: 万科大都会 | C96: 永平路以南，永泰路以北，同仁路以东 | D96: 普通商品房 | E96: 4.1249 | F96: 已竣工 | G96: 0
A97: 92 | B97: 万科大都会 | C97: 永泰路以南、统一路以北、同仁路以东、韩非路以西 | D97: 普通商品房 | E97: 10.2250 | F97: 已动工未竣工 | G97: 0.454
A98: 93 | B98: 万科宸樾 | C98: 钓鱼台路（沣渭大道）以东，资川里二路（新元路）以南，德惠路（纵五路）以西，红光大道以北 | D98: 普通商品房 | E98: 8.4011 | F98: 已动工未竣工 | G98: 7.435
A99: 94 | B99: 蓝光雍锦湾 | C99: 天府路以北，横五路以南，渭东路以东，咸户路以西 | D99: 普通商品房 | E99: 6.3615 | F99: 已动工未竣工 | G99: 0.1876585
A100: 95 | B100: 中国西部科技创新港高端人才生活基地（a1-09） | C100: 临渭路以南，秀水路以东，学森一路以北，求学路以西 | D100: 普通商品房 | E100: 2.2551 | F100: 已竣工 | G100: 0
A101: 96 | B101: 中国西部科技创新港高端人才生活基地(b1-02) | C101: 临渭路以南，秀水路以西，学森一路以北，励志东路以东 | D101: 普通商品房 | E101: 1.5869 | F101: 已竣工 | G101: 0
A102: 97 | B102: 中国西部科技创新港高端人才生活基地(b2-02) | C102: 学森一路以南，励志东路以东，彭康路以北，秀水路以西 | D102: 普通商品房 | E102: 1.3870 | F102: 已竣工 | G102: 0
A103: 98 | B103: 中国西部科技创新港高端人才生活基地(b3-03) | C103: 学森二路以南，励志西路以东，励志南路以北，敦笃路以西 | D103: 普通商品房 | E103: 1.8156 | F103: 已竣工 | G103: 0
A104: 99 | B104: 中国西部科技创新港高端人才生活基地(b3-06) | C104: 励志南路以南，励志西路以东，学镇环路以北，敦笃路以西 | D104: 普通商品房 | E104: 3.3833 | F104: 已竣工 | G104: 0.0027
A105: 100 | B105: 中国西部科技创新港高端人才生活基地(b3-04) | C105: 学森二路以南，励志西路以西，励志南路以北，竹园东路以东 | D105: 普通商品房 | E105: 1.8156 | F105: 已竣工 | G105: 0
A106: 101 | B106: 中国西部科技创新港高端人才生活基地(b3-09) | C106: 学森三路以北，励志西路以西，励志南路以南，竹园东路以东 | D106: 普通商品房 | E106: 1.4106 | F106: 已竣工 | G106: 0.0032
A107: 102 | B107: 中国西部科技创新港高端人才生活基地(b3-10) | C107: 学森三路以南，励志西路以西，学镇环路以北，竹园东路以东 | D107: 普通商品房 | E107: 2.6670 | F107: 已竣工 | G107: 0.0241
A108: 103 | B108: 中国西部科技创新港高端人才生活基地(b3-05) | C108: 学森二路以南，竹园东路以西，学森三路以北 | D108: 普通商品房 | E108: 1.9742 | F108: 已竣工 | G108: 0
A109: 104 | B109: 中国西部科技创新港高端人才生活基地(b3-11) | C109: 学森三路以南，竹园东路以西，学镇环路以北 | D109: 普通商品房 | E109: 1.7995 | F109: 已竣工 | G109: 0.0462
A110: 105 | B110: 中国西部科技创新港高端人才生活基地小户型项目 | C110: 果毅南路以南，力行路以东，樱花西路以西，学镇环路以北 | D110: 普通商品房 | E110: 1.5022 | F110: 已动工未竣工 | G110: 0
A111: 106 | B111: 中国西部科技创新港高端人才生活基地（F1-01） | C111: 咸户路以西，南洋北路以南，南洋大道以北，学镇环路以东 | D111: 普通商品房 | E111: 5.9957 | F111: 已动工未竣工 | G111: 0
A112: 107 | B112: 中国西部科技创新港高端人才生活基地（F1-02） | C112: 仲英北路以西，南洋南路以北，南洋大道以南，南洋环路以东 | D112: 普通商品房 | E112: 2.9873 | F112: 已动工未竣工 | G112: 0
A113: 108 | B113: 中国西部科技创新港高端人才生活基地(F1-03) | C113: 仲英北路以东，南洋南路以北，南洋大道以南，南洋环路以西 | D113: 普通商品房 | E113: 2.1483 | F113: 已动工未竣工 | G113: 0
A114: 109 | B114: 中国西部科技创新港高端人才生活基地(F1-09) | C114: 仲英北路以东，南洋南路以南，启德路以北，南洋环路以西 | D114: 普通商品房 | E114: 1.7369 | F114: 已动工未竣工 | G114: 0
A115: 110 | B115: 中国西部科技创新港高端人才生活基地（F2-02） | C115: 仲英中路以北，启德路以南，南洋环路以东，仲英南路以西 | D115: 普通商品房 | E115: 5.6665 | F115: 已动工未竣工 | G115: 0
A116: 111 | B116: 中国西部科技创新港高端人才生活基地(F2-05) | C116: 仲英中路以南，南洋环路以北，南洋环路以东，仲英南路以西 | D116: 普通商品房 | E116: 7.6647 | F116: 已动工未竣工 | G116: 0
A117: 112 | B117: 科为城·学府 | C117: 天雄西路以北，横七路以南，兴信路以东，兴园路以西 | D117: 普通商品房 | E117: 3.9828 | F117: 已动工未竣工 | G117: 1.5931
A118: 113 | B118: 科为城·熙府 | C118: 天雄西路以南，横十一路以北，纵十路以东，兴信路以西 | D118: 普通商品房 | E118: 5.7127 | F118: 已动工未竣工 | G118: 3.6561
A119: 114 | B119: 华润沣华九里 | C119: 信息片区丰信路（兴信路）以东，公园大街（天雄西路）以南，丰智南路（兴园路）以西，翱翔四路（横十一路）以北 | D119: 普通商品房 | E119: 7.6755 | F119: 未动工
A120: 115 | B120: 中交长安里 | C120: 尚仁路（韩非路）以东，西咸快速干道辅道以南，沣柳路以西，龙台观路（永平路）以北 | D120: 普通商品房 | E120: 9.8134 | F120: 已动工未竣工 | G120: 8.7654
A121: 116 | B121: 西派宸樾 | C121: 同仁西路以东，同仁路以西，沣景路以南，尚仁路以北 | D121: 普通商品房 | E121: 4.6067 | F121: 已动工未竣工 | G121: 3.617
A122: 117 | B122: 中旅名门府 | C122: 沣西新城沣柳路以西，龙台观路（永平路）以北 | D122: 住宅 | E122: 9.2037 | F122: 已动工未竣工 | G122: 3.4521
A123: 118 | B123: 崇文观筑 | C123: 泾干镇柴家村、姚坊村 | D123: 普通商品房 | E123: 8.5826 | F123: 未动工
A124: 119 | B124: 崇文郎樾 | C124: 崇文镇虎杨村 | D124: 普通商品房 | E124: 4.2656 | F124: 已动工未竣工 | G124: 4.2656
A125: 120 | B125: 翠缇庄园 | C125: 高庄镇费家崖村、寿平村 | D125: 普通商品房 | E125: 6.8082 | F125: 已动工未竣工 | G125: 0
A126: 121 | B126: 湖滨庄园 | C126: 高庄镇费家崖村、寿平村 | D126: 普通商品房 | E126: 5.9101 | F126: 已动工未竣工 | G126: 5.9101
A127: 122 | B127: 香榭庄园 | C127: 高庄镇费家崖村、寿平村 | D127: 普通商品房 | E127: 12.9943 | F127: 已动工未竣工 | G127: 3.1232
A128: 123 | B128: 黄冈学府城（北区） | C128: 高庄镇阜下村、山西庄村 | D128: 普通商品房 | E128: 18.4668 | F128: 已动工未竣工 | G128: 4.7489
A129: 124 | B129: 黄冈学府城（南区） | C129: 高庄镇阜下村 | D129: 普通商品房 | E129: 2.4834 | F129: 已动工未竣工 | G129: 0
A130: 125 | B130: 黄冈学府城（南区） | C130: 高庄镇阜下村、山西庄村 | D130: 普通商品房 | E130: 4.9259 | F130: 未动工
A131: 126 | B131: 陕西基泰房地产开发有限公司 | C131: 崇文镇摆渡村 | D131: 普通商品房 | E131: 2.6382 | F131: 未动工
A132: 127 | B132: 新华阙 | C132: 崇文镇焦村、宋村 | D132: 普通商品房 | E132: 8.8418 | F132: 已动工未竣工 | G132: 0
A133: 128 | B133: 陕西省西咸新区泾河新城开发建设（集团）有限公司 | C133: 崇文镇摆渡村 | D133: 普通商品房 | E133: 6.6801 | F133: 未动工
A134: 129 | B134: 陕西省西咸新区泾河新城开发建设（集团）有限公司 | C134: 崇文镇摆渡村 | D134: 普通商品房 | E134: 6.616 | F134: 未动工
A135: 130 | B135: 湖城印象 | C135: 崇文镇摆渡村 | D135: 普通商品房 | E135: 6.6293 | F135: 已动工未竣工 | G135: 0
A136: 131 | B136: 崇文尚学（三期） | C136: 崇文镇崇文村、宋村 | D136: 普通商品房 | E136: 3.2878 | F136: 已动工未竣工 | G136: 1.7604
A137: 132 | B137: 世贸馨城 | C137: 崇文镇宋村、蔡壕村、虎杨村 | D137: 普通商品房 | E137: 11.1096 | F137: 已动工未竣工 | G137: 11.1096
A138: 133 | B138: 世贸铭城 | C138: 崇文镇蔡壕村、虎杨村 | D138: 普通商品房 | E138: 17.5167 | F138: 已动工未竣工 | G138: 17.5167
A139: 134 | B139: 金辉·崇文府 | C139: 崇文镇宋村 | D139: 普通商品房 | E139: 4.6649 | F139: 已动工未竣工 | G139: 0
A140: 135 | B140: 白桦林·漫步 | C140: 崇文镇崇文村、宋村 | D140: 普通商品房 | E140: 9.345 | F140: 已动工未竣工 | G140: 6.9655
A141: 136 | B141: 春晓园 | C141: 崇文镇坡底村、摆渡村 | D141: 普通商品房 | E141: 4.9983 | F141: 已动工未竣工 | G141: 4.9983
A142: 137 | B142: 白桦林·悦湖 | C142: 崇文镇摆渡村 | D142: 普通商品房 | E142: 9.4185 | F142: 已动工未竣工 | G142: 9.4185
A143: 138 | B143: 阳光城文澜府 | C143: 高庄镇山西庄村 | D143: 普通商品房 | E143: 2.8162 | F143: 已动工未竣工 | G143: 0
A144: 139 | B144: 陕西晟锦房地产开发有限公司 | C144: 高庄镇阜下村 | D144: 普通商品房 | E144: 4.8852 | F144: 已动工未竣工 | G144: 4.8852
A145: 140 | B145: 陕西晟锦房地产开发有限公司 | C145: 高庄镇阜下村、山西庄村 | D145: 普通商品房 | E145: 2.8648 | F145: 已动工未竣工 | G145: 2.8648
A146: 141 | B146: 翰林艺境 | C146: 高庄镇山西庄村 | D146: 普通商品房 | E146: 5.0625 | F146: 已动工未竣工 | G146: 0
A147: 142 | B147: 陕西省西咸新区泾河新城开发建设（集团）有限公司 | C147: 高庄镇金田玉村、阜下村 | D147: 普通商品房 | E147: 6.2238 | F147: 未动工
A148: 143 | B148: 陕西省西咸新区泾河新城开发建设（集团）有限公司 | C148: 高庄镇金田玉村、阜下村 | D148: 普通商品房 | E148: 3.6876 | F148: 已动工未竣工 | G148: 3.6876
A149: 144 | B149: 陕西宏卓房地产开发有限公司 | C149: 高庄镇芦家村 | D149: 普通商品房 | E149: 5.9708 | F149: 已动工未竣工 | G149: 0
A150: 145 | B150: 陕西宏卓房地产开发有限公司 | C150: 高庄镇芦家村 | D150: 普通商品房 | E150: 6.8379 | F150: 已动工未竣工 | G150: 2.7757
A151: 146 | B151: 绿地智创金融城 | C151: 高庄镇高庄村 | D151: 普通商品房 | E151: 11.569 | F151: 已动工未竣工 | G151: 0
A152: 147 | B152: 陕西华久置业有限公司（南飞鸿） | C152: 高庄镇山西庄村 | D152: 普通商品房 | E152: 3.6497 | F152: 已动工未竣工 | G152: 0
A153: 148 | B153: 西咸新区泾河新城产发置业有限公司 | C153: 崇文镇摆渡村 | D153: 普通商品房 | E153: 4.1139 | F153: 已动工未竣工 | G153: 4.1139
A154: 149 | B154: 西咸新区泾河新城产发置业有限公司 | C154: 崇文镇摆渡村 | D154: 普通商品房 | E154: 5.4301 | F154: 未动工
A155: 150 | B155: 西咸新区泾河新城产发置业有限公司 | C155: 崇文镇摆渡村 | D155: 普通商品房 | E155: 3.1422 | F155: 未动工
A156: 151 | B156: 西安曲江荣华置业有限公司 | C156: 高庄镇阜下村 | D156: 普通商品房 | E156: 3.5870 | F156: 已动工未竣工 | G156: 0
A157: 152 | B157: 陕西泾诚朗筑置业有限公司 | C157: 高庄镇寿平村 | D157: 普通商品房 | E157: 6.8395 | F157: 已动工未竣工 | G157: 4.4678
A158: 153 | B158: 陕西泾诚朗筑置业有限公司 | C158: 高庄镇寿平村 | D158: 普通商品房 | E158: 6.5542 | F158: 已动工未竣工 | G158: 6.5542
A159: 154 | B159: 西咸新区荣元昇置业发展有限公司 | C159: 高庄镇山西庄村 | D159: 普通商品房 | E159: 5.3117 | F159: 已动工未竣工 | G159: 5.3117
A160: 155 | B160: 卓越置业集团（西安）有限公司 | C160: 高庄镇山西庄村 | D160: 普通商品房 | E160: 4.1900 | F160: 已动工未竣工 | G160: 3.5115
A161: 156 | B161: 西安万科共筑房地产开发有限公司 | C161: 泾干街道双赵村 | D161: 普通商品房 | E161: 5.9432 | F161: 已动工未竣工 | G161: 2.8991
A162: 157 | B162: 西安万科共筑房地产开发有限公司 | C162: 泾干街道双赵村 | D162: 普通商品房 | E162: 3.7894 | F162: 已动工未竣工 | G162: 3.7894
A163: 158 | B163: 河北晟隆城市建设发展有限公司 | C163: 崇文镇摆渡村 | D163: 普通商品房 | E163: 6.0400 | F163: 已动工未竣工 | G163: 6.0400
A164: 159 | B164: 陕西省西咸新区泾河新城开发建设（集团）有限公司 | C164: 泾干街道县前村、姚坊村 | D164: 普通商品房 | E164: 1.8364 | F164: 未动工
A165: 160 | B165: 陕西省西咸新区泾河新城开发建设（集团）有限公司 | C165: 泾干街道县前村、姚坊村 | D165: 普通商品房 | E165: 4.5349 | F165: 未动工
A166: 161 | B166: 西咸新区泾河新城产发置业有限公司 | C166: 高庄镇阜下村 | D166: 普通商品房 | E166: 4.9686 | F166: 未动工
A167: 162 | B167: 西北妇幼住宅 | C167: 长安区高桥街道文教二路以南、文教六路以北、沣柳路以西、文韵三路以东 | D167: 普通商品房 | E167: =140.358/15 -> 9.3572 | F167: 已动工未竣工 | G167: =73867/10000 -> 7.3867
A168: 163 | B168: 西咸文教园沣岭住宅 | C168: 长安区高桥街道学苑二路以南，学苑五路以北，中央大街以西，文韵四路以东 | D168: 普通商品房 | E168: =110.762/15 -> 7.3841 | F168: 已动工未竣工 | G168: =0.0001*4086.28 -> 0.4086
A169: 164 | B169: 招商雍景湾 | C169: 长安区高桥街道学苑五路以南，学苑八路以北，中央大街以西，文韵四路以东 | D169: 普通商品房 | E169: =68.8339999999999/15 -> 4.5889 | F169: 已竣工 | G169: 0
A170: 165 | B170: 洺悦府 | C170: 秦都区上林街道丰安路以南，石化大道以北，上航六路以西，尚航七路以东 | D170: 普通商品房 | E170: =107.99/15 -> 7.1993 | F170: 已动工未竣工 | G170: 0
A171: 166 | B171: 绿城留香园 | C171: 秦都区上林街道世纪大道以南，水井路以西，世纪一路以北，沣东一路以东 | D171: 普通商品房 | E171: =99.645/15 -> 6.6430 | F171: 已动工未竣工 | G171: 0.2023
A172: 167 | B172: 沣渭壹号院 | C172: 秦都区上林街道丰宁路以南，丰裕路以北，金融三路以西，贸易路以东 | D172: 普通商品房 | E172: =32.183/15 -> 2.1455 | F172: 已动工未竣工 | G172: =0.0001*1001.06 -> 0.1001
A173: 168 | B173: 绿地能源国际金融中心A地块 | C173: 秦都区上林街道丰宁路以南，丰裕路以北，金融西路以西，金融三路以东 | D173: 普通商品房 | E173: =28.206/15 -> 1.8804 | F173: 已动工未竣工 | G173: 0
A174: 169 | B174: 绿地能源国际金融中心C地块 | C174: 秦都区上林街道丰裕路以南，丰登路以北，金融西路以西，金融三路以东 | D174: 普通商品房 | E174: =30.741/15 -> 2.0494 | F174: 已动工未竣工 | G174: 0
A175: 170 | B175: 中南菩悦东望府 | C175: 秦都区上林街道XXFD-JM02-89以南，丰安路以北，丝绸路以东，金融三路以西 | D175: 普通商品房 | E175: =32.0419999999999/15 -> 2.1361 | F175: 已动工未竣工 | G175: 0
A176: 171 | B176: 中天珺玺一期 | C176: 秦都区上林街道丰登路以南，XXFD-JM02-90以北，丝绸路以东，金融三路以西 | D176: 普通商品房 | E176: =21.078/15 -> 1.4052 | F176: 已动工未竣工 | G176: =0.0001*1967.16 -> 0.1967
A177: 172 | B177: 中天珺玺 | C177: 秦都区上林街道丰登路以南，丰安路以北，金融三路以东，金融西路以西 | D177: 普通商品房 | E177: =42.317/15 -> 2.8211 | F177: 已动工未竣工 | G177: =0.0001*7805.43 -> 0.7805
A178: 173 | B178: 西安中梁鎏金雲玺 | C178: 秦都区上林街道陇海铁路北侧路以北,石化大道以南，沣泾大道以西，金融一路以东 | D178: 普通商品房 | E178: =54.4935/15 -> 3.6329 | F178: 已动工未竣工 | G178: =0.0001*26974 -> 2.6974
A179: 174 | B179: 绿城合庐 | C179: 尚航七路以东、尚航六路以西 | D179: 普通商品房 | E179: =67918.99/10000 -> 6.7919 | F179: 已动工未竣工 | G179: =67918.99/10000 -> 6.7919
A180: 175 | B180: 西咸新区沣上实业有限公司 | C180: 贸易路以东、丰登路以南、丝绸路以西、丰安路以北 | D180: 普通商品房 | E180: =0.0001*37321.39 -> 3.7321 | F180: 未动工
A181: 176 | B181: 陕西铁路物流集团有限公司 | C181: 贸易路以东、丰安路以南、丝绸路以西、石化大道以北 | D181: 普通商品房 | E181: =0.0001*22646.33 -> 2.2646 | F181: 未动工
A182: 1.关于住宅类型：应选择填写“普通商品房”“租赁型商品房”“共有产权房”“公租房”。
A183: 2.建设状态：应选择填写“未动工”“已动工未竣工”。
A184: 3.未纳入房屋销售的土地面积：此项只针对“已动工未竣工”的项目，“未动工”项目不需填写。

Sheet Sheet2

Sheet Sheet3
